bitfinex-derivatives/quotes_SOLF0:USTF0_20251024
["timestamp","ask_amount","ask_price","bid_price","bid_amount"]
[1761305246638,8.83239268,191.52,191.51,2.85]
[1761305246840,8.83239268,191.52,191.51,45.97]
[1761305250352,4.6983,191.52,191.51,45.97]
[1761305251748,4.6983,191.52,191.51,2.85]
[1761305252049,4.6983,191.52,191.51,45.97]
[1761305252445,4.6983,191.52,191.51,2.85]
[1761305253052,4.6983,191.52,191.51,45.97]
[1761305253554,4.6983,191.52,191.51,2.85]
[1761305253754,4.6983,191.52,191.51,45.97]
[1761305254249,4.6983,191.52,191.51,43.12]
[1761305254456,4.699,191.5,191.48,2.62]
[1761305254656,4.699,191.5,191.49,45.74]
[1761305256757,4.699,191.5,191.49,47.27458197]
[1761305257054,4.6985,191.52,191.5,2.62]
[1761305257254,4.6985,191.52,191.51,1.53458197]
[1761305257460,4.6985,191.52,191.51,4.15458197]
[1761305257654,4.6985,191.52,191.51,47.27458197]
[1761305258053,4.6985,191.52,191.51,4.15458197]
[1761305258353,4.6985,191.52,191.51,47.27458197]
[1761305261055,4.6985,191.52,191.51,4.15458197]
[1761305261260,4.6985,191.52,191.51,47.27458197]
[1761305261654,4.698,191.54,191.52,2.62]
[1761305262156,4.698,191.54,191.53,45.74]
[1761305262549,4.698,191.54,191.53,2.62]
[1761305262754,4.698,191.54,191.53,45.74]
[1761305264162,4.698,191.54,191.53,45.72]
[1761305264364,4.698,191.54,191.53,2.62]
[1761305264556,4.698,191.54,191.53,45.72]
[1761305264960,4.698,191.54,191.53,2.62]
[1761305265162,4.698,191.54,191.53,47.25458197]
[1761305266154,4.698,191.54,191.53,4.15458197]
[1761305266350,4.698,191.54,191.53,47.25458197]
[1761305267059,4.698,191.54,191.53,45.72]
[1761305267256,4.698,191.54,191.53,47.25458197]
[1761305270070,4.698,191.54,191.53,4.15458197]
[1761305270567,4.698,191.54,191.53,47.25458197]
[1761305270964,4.698,191.54,191.53,4.15458197]
[1761305271163,4.698,191.54,191.53,47.25458197]
[1761305272166,4.698,191.54,191.53,4.15458197]
[1761305272365,4.698,191.54,191.53,47.25458197]
[1761305273165,4.6975,191.56,191.53,47.25458197]
[1761305273468,4.6975,191.56,191.55,4.15458197]
[1761305273865,4.6975,191.56,191.55,47.25458197]
[1761305274665,4.6969,191.58,191.56,2.62]
[1761305274970,4.6969,191.58,191.57,47.25458197]
[1761305275162,4.6969,191.58,191.57,4.15458197]
[1761305275363,4.6969,191.58,191.57,40.53458197]
[1761305276166,4.6969,191.58,191.57,47.25458197]
[1761305276371,4.6976,191.55,191.53,2.62]
[1761305276561,7.5676,191.55,191.53,45.72]
[1761305276761,7.5676,191.55,191.53,2.62]
[1761305277167,7.5676,191.55,191.53,45.72]
[1761305281668,2.72,191.54,191.53,43.1]
[1761305281969,2.72,191.52,191.51,44.63458197]
[1761305282168,4.6981,191.53,191.51,45.99]
[1761305282568,4.6981,191.53,191.52,2.89]
[1761305282970,4.6981,191.53,191.52,45.99]
[1761305284174,4.6981,191.53,191.52,47.52458197]
[1761305284769,4.6977,191.55,191.53,2.89]
[1761305285171,7.4177,191.55,191.53,2.89]
[1761305285472,4.6977,191.55,191.53,2.89]
[1761305289974,4.6977,191.55,191.54,1.53458197]
[1761305290173,4.6977,191.55,191.54,4.42458197]
[1761305292673,4.6977,191.55,191.54,47.52458197]
[1761305293178,4.6977,191.55,191.54,4.42458197]
[1761305293373,4.6977,191.55,191.54,47.52458197]
[1761305296473,4.6977,191.55,191.54,4.42458197]
[1761305296774,4.6977,191.55,191.54,47.50458197]
[1761305297382,4.6977,191.55,191.54,4.42458197]
[1761305297880,4.6977,191.55,191.54,47.50458197]
[1761305299782,4.6977,191.55,191.54,4.42458197]
[1761305299985,4.6977,191.55,191.54,47.50458197]
[1761305300378,4.6977,191.55,191.54,4.42458197]
[1761305300579,7.4177,191.55,191.54,47.50458197]
[1761305300982,7.4177,191.55,191.54,44.61458197]
[1761305302182,7.4177,191.55,191.54,43.08]
[1761305302575,4.6977,191.55,191.54,47.50458197]
[1761305302771,4.6977,191.55,191.54,4.42458197]
[1761305302984,4.6977,191.55,191.54,47.50458197]
[1761305304281,4.6977,191.55,191.54,4.42458197]
[1761305304481,4.6977,191.55,191.54,47.50458197]
[1761305305189,4.6977,191.55,191.54,1.53458197]
[1761305305380,7.4177,191.55,191.54,44.61458197]
[1761305307188,11.67206884,191.55,191.54,44.61458197]
[1761305308992,11.67206884,191.55,191.54,43.08]
[1761305310284,2.83,191.54,191.53,1.53458197]
[1761305310498,7.08436884,191.54,191.53,1.53458197]
[1761305316698,4.6981,191.53,191.51,45.97]
[1761305317797,7.4181,191.53,191.51,45.97]
[1761305318001,2.72,191.52,191.51,43.08]
[1761305318394,7.4185,191.52,191.49,2.68]
[1761305318596,7.4185,191.52,191.48,2.39761385]
[1761305318597,7.4185,191.52,191.5,45.76]
[1761305318999,4.6985,191.52,191.51,2.68]
[1761305320602,4.6985,191.52,191.51,45.76]
[1761305321000,4.6979,191.54,191.52,2.68]
[1761305321395,2.72,191.57,191.52,2.68]
[1761305321596,15.89741833,191.61,191.52,2.68]
[1761305321597,11.66147248,191.56,191.52,2.68]
[1761305321794,4.24397248,191.55,191.52,2.68]
[1761305322099,7.4175,191.56,191.53,45.76]
[1761305322300,4.24406042,191.55,191.53,2.68]
[1761305322500,7.4175,191.56,191.53,45.76]
[1761305322803,4.24428763,191.55,191.53,45.76]
[1761305323005,4.6976,191.55,191.53,45.76]
[1761305324399,4.6976,191.55,191.54,2.68]
[1761305324603,8.94459585,191.55,191.54,2.68]
[1761305327206,4.6976,191.55,191.54,2.68]
[1761305327601,4.6973,191.57,191.55,2.68]
[1761305327906,4.6973,191.57,191.56,48.15761385]
[1761305328109,8.94340858,191.57,191.56,48.15761385]
[1761305328299,8.94340858,191.57,191.56,5.07761385]
[1761305328499,8.94340858,191.57,191.56,48.15761385]
[1761305328900,8.94340858,191.57,191.56,5.07761385]
[1761305329103,8.94340858,191.57,191.56,48.15761385]
[1761305329805,8.94340858,191.57,191.56,5.07761385]
[1761305330003,8.94340858,191.57,191.56,48.15761385]
[1761305330399,8.94340858,191.57,191.56,5.07761385]
[1761305330605,8.94340858,191.57,191.56,48.15761385]
[1761305331004,8.94340858,191.57,191.56,5.07761385]
[1761305331205,8.94340858,191.57,191.56,48.15761385]
[1761305331206,4.6973,191.57,191.56,48.15761385]
[1761305333014,4.6973,191.57,191.56,5.07761385]
[1761305333218,4.6973,191.57,191.56,48.15761385]
[1761305335719,4.6973,191.57,191.56,5.07761385]
[1761305335918,4.6973,191.57,191.56,48.15761385]
[1761305336113,4.6973,191.57,191.56,5.07761385]
[1761305336313,4.6973,191.57,191.56,48.15761385]
[1761305339018,4.6973,191.57,191.56,5.07761385]
[1761305339520,4.6973,191.57,191.56,48.15761385]
[1761305341421,4.6973,191.57,191.56,5.07761385]
[1761305341616,4.6973,191.57,191.56,48.13761385]
[1761305345324,4.6973,191.57,191.56,5.07761385]
[1761305345524,4.6973,191.57,191.56,48.13761385]
[1761305346527,7.437,191.58,191.56,45.94]
[1761305346829,7.437,191.58,191.56,2.88]
[1761305347028,2.74,191.57,191.56,45.94]
[1761305347523,4.697,191.58,191.57,2.88]
[1761305355833,4.87879113,191.64,191.57,2.39761385]
[1761305356132,2.74,191.72,191.64,2.88]
[1761305356323,6.50481833,191.76,191.66,2.39761385]
[1761305356324,2.74,191.68,191.66,2.39761385]
[1761305356521,2.74,191.68,191.65,45.94]
[1761305356721,2.39761385,191.75,191.65,45.94]
[1761305356722,6.91864247,191.75,191.66,5.0851014]
[1761305356926,4.14499904,191.74,191.67,5.0851014]
[1761305357122,4.14499904,191.73,191.68,5.0851014]
[1761305357432,4.14499904,191.72,191.69,5.0851014]
[1761305357628,13.90297691,191.77,191.7,1.4e-06]
[1761305357830,8.41979598,191.76,191.65,45.94]
[1761305358137,3.90171907,191.75,191.65,45.94]
[1761305358333,3.90171907,191.74,191.65,45.94]
[1761305358531,3.90171907,191.73,191.65,45.94]
[1761305358728,3.90171907,191.72,191.67,2.88]
[1761305358930,2.2,191.71,191.67,2.88]
[1761305359430,2.2,191.71,191.67,2.39761385]
[1761305359630,2.2,191.71,191.68,2.88]
[1761305359831,2.2,191.71,191.67,2.39761385]
[1761305360031,4.6943,191.69,191.67,2.39761385]
[1761305360532,4.6947,191.67,191.65,45.94]
[1761305360731,6.8947,191.67,191.65,43.06]
[1761305360930,6.8947,191.67,191.65,45.94]
[1761305361132,4.6947,191.67,191.65,45.94]
[1761305362235,6.8947,191.67,191.65,45.94]
[1761305363033,4.6947,191.67,191.65,43.06]
[1761305363238,4.6947,191.67,191.66,2.88]
[1761305364143,6.8951,191.66,191.64,43.04]
[1761305364935,6.8951,191.66,191.64,45.92]
[1761305365546,2.2,191.65,191.64,35.117]
[1761305366241,2.2,191.71,191.6,45.92]
[1761305367042,4.6959,191.62,191.61,2.88]
[1761305376759,4.6959,191.62,191.61,4.41270687]
[1761305377854,4.6959,191.62,191.58,2.86]
[1761305378046,2.2,191.61,191.58,45.9]
[1761305378246,2.2,191.61,191.6,1.53270687]
[1761305378754,4.6959,191.62,191.6,4.39270687]
[1761305380058,4.6959,191.62,191.61,2.86]
[1761305381154,4.6955,191.64,191.61,2.86]
[1761305381451,4.6955,191.64,191.63,4.39270687]
[1761305384058,6.8955,191.64,191.63,1.53270687]
[1761305387659,4.6955,191.64,191.63,4.39270687]
[1761305401965,6.8955,191.64,191.63,1.53270687]
[1761305402268,6.8961,191.62,191.61,1.53270687]
[1761305403360,4.6961,191.62,191.61,4.38270687]
[1761305404561,4.6961,191.62,191.61,1.53270687]
[1761305404764,6.8961,191.62,191.61,1.53270687]
[1761305405758,4.6961,191.62,191.61,4.38270687]
[1761305408067,6.8956,191.64,191.61,4.38270687]
[1761305408263,6.8956,191.64,191.63,1.53270687]
[1761305409657,4.6956,191.64,191.63,4.38270687]
[1761305410571,4.6956,191.64,191.63,47.42270687]
[1761305413670,4.6952,191.66,191.64,2.85]
[1761305413970,4.6952,191.66,191.65,1.53270687]
[1761305414171,6.8952,191.66,191.65,1.53270687]
[1761305415267,4.6955,191.64,191.63,44.57270687]
[1761305415966,4.6955,191.64,191.63,47.42270687]
[1761305419266,6.8955,191.64,191.63,44.57270687]
[1761305419671,4.6962,191.61,191.58,2.85]
[1761305419975,4.6962,191.61,191.6,2.85]
[1761305420276,4.6962,191.61,191.6,45.89]
[1761305420876,4.6962,191.61,191.6,47.42270687]
[1761305421979,4.6962,191.61,191.6,45.89]
[1761305422171,4.6962,191.61,191.6,47.42270687]
[1761305424673,4.6959,191.63,191.61,2.85]
[1761305424876,4.6959,191.63,191.62,1.53270687]
[1761305425486,4.6959,191.63,191.62,4.38270687]
[1761305429181,4.6959,191.63,191.62,1.53270687]
[1761305430285,4.6959,191.63,191.62,4.31270687]
[1761305431480,4.6959,191.63,191.62,1.53270687]
[1761305434780,2.2,191.7,191.63,2.78]
[1761305435082,2.2,191.68,191.66,1.53270687]
[1761305436077,6.8947,191.67,191.66,1.53270687]
[1761305438783,4.6952,191.65,191.64,43.04]
[1761305439192,6.8952,191.65,191.64,43.04]
[1761305441685,4.6957,191.63,191.62,5.17442402]
[1761305441889,4.6957,191.63,191.62,48.19442402]
[1761305445296,6.8957,191.63,191.62,43.02]
[1761305446090,4.6961,191.62,191.61,2.78]
[1761305446290,4.6961,191.62,191.61,45.8]
[1761305455506,4.6956,191.64,191.62,2.78]
[1761305457406,4.6956,191.64,191.63,2.78]
[1761305458598,4.6956,191.64,191.63,5.17442402]
[1761305460606,4.6956,191.64,191.62,2.74]
[1761305460816,4.6956,191.64,191.63,45.76]
[1761305461002,9.3883,191.7,191.56,9.74281254]
[1761305461198,2.2,191.57,191.54,9.74281254]
[1761305461405,2.2,191.57,191.53,2.74]
[1761305461713,2.2,191.55,191.51,45.86]
[1761305462007,2.2,191.55,191.51,2.74]
[1761305462204,2.2,191.55,191.48,2.39442402]
[1761305462205,2.2,191.55,191.49,2.74]
[1761305462606,4.6983,191.53,191.49,2.74]
[1761305463610,6.8983,191.53,191.49,2.74]
[1761305464216,2.2,191.52,191.49,2.74]
[1761305464706,6.8983,191.53,191.49,2.74]
[1761305466810,2.2,191.53,191.49,2.74]
[1761305467017,6.8975,191.56,191.52,2.74]
[1761305467321,2.2,191.56,191.52,2.74]
[1761305468118,4.6978,191.55,191.52,2.74]
[1761305468818,73.0525,191.61,191.45,9.74281254]
[1761305469020,2.2,191.53,191.44,2.39442402]
[1761305469319,2.2,191.47,191.44,2.39442402]
[1761305469519,2.2,191.47,191.39,46.5]
[1761305469710,2.2,191.47,191.41,2.39442402]
[1761305470017,2.2,191.47,191.4,5.13442402]
[1761305470323,2.2,191.47,191.41,2.74]
[1761305471022,2.2,191.47,191.41,5.13442402]
[1761305471620,2.2,191.47,191.41,2.74]
[1761305471825,2.2,191.45,191.41,2.74]
[1761305472213,2.2,191.45,191.39,43.76]
[1761305472521,2.2,191.44,191.39,46.5]
[1761305473626,2.2,191.44,191.4,2.74]
[1761305474220,6.8992,191.49,191.41,2.39442402]
[1761305474426,6.8992,191.49,191.45,2.74]
[1761305474628,2.2,191.48,191.45,2.74]
[1761305475626,6.8996,191.47,191.44,5.13442402]
[1761305477517,4.7001,191.45,191.4,2.74]
[1761305477723,2.2,191.44,191.41,2.74]
[1761305478029,6.9001,191.45,191.42,2.74]
[1761305479224,6.9005,191.44,191.41,2.74]
[1761305479528,2.2,191.54,191.41,2.74]
[1761305479723,2.2,191.52,191.41,2.74]
[1761305480325,4.7003,191.45,191.41,2.74]
[1761305480527,2.2,191.44,191.28,150.22]
[1761305480725,2.2,191.44,191.32,5.13442402]
[1761305481033,2.2,191.44,191.32,2.74]
[1761305481238,2.2,191.42,191.32,2.74]
[1761305481527,2.2,191.4,191.27,17.04]
[1761305481828,2.2,191.4,191.29,2.39442402]
[1761305482027,4.7035,191.32,191.27,17.04]
[1761305482232,2.2,191.31,191.26,2.74]
[1761305483330,2.2,191.31,191.25,2.39442402]
[1761305483522,2.2,191.31,191.25,5.13442402]
[1761305483828,2.2,191.31,191.23,2.74]
[1761305484031,2.2,191.31,191.25,2.39442402]
[1761305484333,2.2,191.31,191.23,2.74]
[1761305484631,2.2,191.31,191.26,2.39442402]
[1761305485218,2.2,191.31,191.24,2.39442402]
[1761305485427,2.2,191.31,191.25,2.74]
[1761305485830,2.2,191.31,191.26,2.39442402]
[1761305486134,4.7027,191.35,191.27,2.74]
[1761305486429,2.2,191.34,191.27,2.74]
[1761305486729,2.2,191.34,191.28,2.39442402]
[1761305488324,2.2,191.37,191.29,2.74]
[1761305488926,2.2,191.37,191.31,5.27442402]
[1761305490626,50.17583614,191.43,191.31,2.74]
[1761305490627,4.7026,191.35,191.31,2.74]
[1761305490830,2.19,191.38,191.31,2.74]
[1761305491325,4.7025,191.36,191.31,2.74]
[1761305491529,2.19,191.35,191.31,2.74]
[1761305491930,6.8926,191.35,191.31,2.74]
[1761305492735,6.893,191.34,191.25,2.74]
[1761305493033,2.19,191.38,191.22,0.90963745]
[1761305493230,2.39442402,191.38,191.24,2.39442402]
[1761305493429,2.19,191.36,191.24,5.13442402]
[1761305493633,2.19,191.34,191.24,5.13442402]
[1761305493943,2.19,191.34,191.27,5.13442402]
[1761305495030,6.8936,191.31,191.27,5.13442402]
[1761305495737,4.704,191.3,191.27,5.13442402]
[1761305496137,4.704,191.3,191.27,2.74]
[1761305496525,2.19,191.31,191.27,2.74]
[1761305497935,6.8937,191.31,191.27,2.74]
[1761305498939,2.19,191.3,191.24,2.39442402]
[1761305499138,4.7044,191.28,191.23,2.74]
[1761305499341,2.19,191.27,191.23,2.74]
[1761305499730,4.7055,191.23,191.2,2.74]
[1761305500130,4.7051,191.25,191.2,2.74]
[1761305500432,2.19,191.24,191.2,2.74]
[1761305500625,2.19,191.28,191.2,2.74]
[1761305500831,6.8952,191.25,191.21,1.53929669]
[1761305501035,1.53929669,191.31,191.22,2.74]
[1761305501234,2.19,191.35,191.3,1.53929669]
[1761305501436,2.19,191.33,191.3,1.53929669]
[1761305501742,2.19,191.33,191.28,1.53929669]
[1761305502940,2.19,191.32,191.28,1.53929669]
[1761305503539,2.19,191.32,191.29,2.74]
[1761305503741,6.8926,191.35,191.31,2.74]
[1761305503940,2.19,191.35,191.32,1.53929669]
[1761305504139,2.19,191.4,191.34,1.53929669]
[1761305504338,6.33373205,191.39,191.35,2.74]
[1761305504538,4.14373205,191.38,191.36,1.53929669]
[1761305504844,4.14373205,191.37,191.36,1.53929669]
[1761305505044,4.14373205,191.37,191.35,4.27929669]
[1761305505248,2.19,191.39,191.35,4.27929669]
[1761305505436,4.14485841,191.38,191.37,1.53929669]
[1761305505635,4.14485841,191.38,191.36,2.74]
[1761305505839,6.8911,191.41,191.37,1.53929669]
[1761305506040,2.19,191.45,191.4,4.27929669]
[1761305506237,2.19,191.43,191.4,1.53929669]
[1761305506542,4.14604522,191.42,191.4,1.53929669]
[1761305506740,2.19,191.43,191.4,4.27929669]
[1761305506935,4.14846231,191.42,191.4,4.27929669]
[1761305507241,2.19,191.46,191.41,2.74]
[1761305507436,4.1505254,191.45,191.43,1.53929669]
[1761305507637,4.1505254,191.44,191.43,1.53929669]
[1761305507831,4.6998,191.47,191.43,4.27929669]
[1761305508145,4.15084729,191.46,191.44,2.74]
[1761305508344,4.15084729,191.45,191.44,2.74]
[1761305508955,4.15084729,191.45,191.43,1.53929669]
[1761305509140,1.53929669,191.46,191.42,2.74]
[1761305509340,4.15267811,191.45,191.42,2.74]
[1761305509648,1.53929669,191.46,191.42,2.74]
[1761305509945,4.15447102,191.45,191.42,2.74]
[1761305510145,1.53929669,191.46,191.42,2.74]
[1761305510340,4.15447366,191.45,191.42,2.74]
[1761305510540,6.8894,191.48,191.42,2.74]
[1761305510541,8.42869669,191.48,191.42,2.74]
[1761305510744,4.15625744,191.47,191.42,2.74]
[1761305511043,4.15625744,191.46,191.42,2.74]
[1761305511239,4.15625744,191.45,191.42,2.74]
[1761305511437,1.53929669,191.48,191.42,2.74]
[1761305511638,4.15813776,191.47,191.42,2.74]
[1761305511840,1.53929669,191.48,191.42,2.74]
[1761305512045,4.15885362,191.47,191.42,2.74]
[1761305512244,1.53929669,191.48,191.42,2.74]
[1761305512431,4.16111645,191.47,191.42,2.74]
[1761305512636,1.53929669,191.48,191.42,2.74]
[1761305512843,4.16111645,191.47,191.42,2.74]
[1761305513043,1.53929669,191.48,191.42,2.74]
[1761305513246,4.16094547,191.47,191.42,2.74]
[1761305513449,1.53929669,191.48,191.42,2.74]
[1761305513645,4.16349038,191.47,191.42,2.74]
[1761305513852,1.53929669,191.45,191.38,2.74]
[1761305514150,6.23889669,191.47,191.39,2.74]
[1761305514355,4.16381198,191.46,191.39,2.74]
[1761305514647,4.6996,191.47,191.4,2.74]
[1761305515345,3.72929669,191.49,191.4,2.74]
[1761305515545,4.16442023,191.48,191.4,2.74]
[1761305515845,4.16442023,191.47,191.4,2.74]
[1761305516049,3.72929669,191.49,191.4,2.74]
[1761305516254,8.86382023,191.48,191.4,2.74]
[1761305516552,4.6994,191.48,191.4,2.74]
[1761305517250,6.8894,191.48,191.4,2.74]
[1761305518353,4.6998,191.47,191.4,2.74]
[1761305520355,4.7,191.46,191.4,2.74]
[1761305520553,3.73929669,191.45,191.37,2.74]
[1761305520757,2.2,191.44,191.37,2.74]
[1761305521553,6.9012,191.41,191.37,2.74]
[1761305521759,2.2,191.4,191.37,2.74]
[1761305522146,6.9005,191.44,191.37,2.74]
[1761305522352,6.9005,191.44,191.38,2.74]
[1761305522551,1.53929669,191.42,191.35,2.74]
[1761305522748,4.7009,191.42,191.35,2.74]
[1761305523058,2.2,191.42,191.35,2.74]
[1761305523262,6.9014,191.4,191.35,2.74]
[1761305523463,2.2,191.39,191.35,2.74]
[1761305526070,4.7014,191.4,191.35,2.74]
[1761305526271,2.2,191.39,191.35,2.74]
[1761305527659,3.73929669,191.43,191.36,2.74]
[1761305527863,2.2,191.43,191.36,2.74]
[1761305528064,4.7009,191.42,191.37,1.53929669]
[1761305528268,4.7009,191.42,191.38,2.74]
[1761305529671,6.9009,191.42,191.38,2.74]
[1761305531164,4.7012,191.41,191.38,2.74]
[1761305531676,2.2,191.42,191.38,2.74]
[1761305531878,6.901,191.42,191.38,2.74]
[1761305535675,2.2,191.48,191.4,2.74]
[1761305535882,2.2,191.48,191.42,2.74]
[1761305536476,6.8999,191.46,191.42,2.74]
[1761305538170,2.2,191.46,191.42,2.74]
[1761305538371,2.2,191.49,191.45,1.53929669]
[1761305538585,2.2,191.49,191.46,2.74]
[1761305538884,2.2,191.52,191.46,2.74]
[1761305539186,4.6995,191.48,191.46,2.74]
[1761305539384,4.6995,191.48,191.44,2.74]
[1761305539882,1.53929669,191.51,191.44,2.74]
[1761305540077,3.73929669,191.51,191.44,2.74]
[1761305540477,2.2,191.5,191.44,2.74]
[1761305540979,4.6992,191.49,191.44,2.74]
[1761305541185,6.8992,191.49,191.44,2.74]
[1761305542587,2.2,191.48,191.44,2.74]
[1761305543779,6.8992,191.49,191.44,2.74]
[1761305544884,4.6992,191.49,191.46,2.74]
[1761305545578,6.8992,191.49,191.45,4.27929669]
[1761305545773,6.8992,191.49,191.45,2.74]
[1761305546581,4.6992,191.49,191.45,2.74]
[1761305546787,4.6988,191.51,191.45,2.74]
[1761305548487,6.8988,191.51,191.45,2.74]
[1761305548995,2.2,191.49,191.43,1.53929669]
[1761305549292,2.2,191.49,191.43,4.39929669]
[1761305549691,2.2,191.49,191.43,1.53929669]
[1761305549996,2.19,191.45,191.4,2.86]
[1761305550689,4.6997,191.47,191.4,2.86]
[1761305550895,4.6997,191.47,191.41,2.86]
[1761305555392,4.6999,191.46,191.41,2.86]
[1761305555597,2.19,191.45,191.41,2.86]
[1761305555997,4.6999,191.46,191.41,2.86]
[1761305556298,4.6994,191.48,191.42,2.86]
[1761305556486,6.8894,191.48,191.42,2.86]
[1761305556691,2.19,191.46,191.42,2.86]
[1761305558601,2.19,191.43,191.36,2.86]
[1761305558793,2.19,191.42,191.36,2.86]
[1761305559591,1.53929669,191.41,191.36,2.86]
[1761305559905,8.43049669,191.41,191.36,2.86]
[1761305560402,2.19,191.4,191.36,2.86]
[1761305560990,1.53929669,191.41,191.36,2.86]
[1761305561196,6.23999669,191.43,191.36,2.86]
[1761305561503,8.42999669,191.43,191.36,2.86]
[1761305561698,6.891,191.42,191.36,7.5621]
[1761305564706,4.701,191.42,191.37,2.86]
[1761305564903,6.8904,191.44,191.37,7.5619]
[1761305565108,6.8904,191.44,191.38,2.86]
[1761305565798,2.19,191.42,191.38,2.86]
[1761305566406,6.8914,191.4,191.34,2.86]
[1761305566608,2.19,191.4,191.34,48.42]
[1761305566997,2.19,191.4,191.34,45.56]
[1761305567198,2.19,191.34,191.26,2.86]
[1761305567503,2.19,191.31,191.23,2.86]
[1761305567899,2.40123822,191.32,191.2,122.25224921]
[1761305567900,4.7045,191.27,191.2,78.89224921]
[1761305568096,6.8945,191.27,191.2,78.89224921]
[1761305568293,2.19,191.26,191.2,78.89224921]
[1761305568697,2.19,191.26,191.2,2.86]
[1761305571209,2.19,191.26,191.18,2.86]
[1761305573003,6.8948,191.26,191.18,2.86]
[1761305573204,2.19,191.25,191.18,2.86]
[1761305574006,2.19,191.25,191.2,2.86]
[1761305574310,2.19,191.25,191.17,2.86]
[1761305575104,2.19,191.25,191.18,2.86]
[1761305575811,2.19,191.25,191.19,2.40123822]
[1761305577014,2.19,191.25,191.19,5.26123822]
[1761305577601,2.19,191.25,191.19,2.86]
[1761305577807,2.19,191.25,191.17,2.86]
[1761305578206,2.19,191.25,191.17,5.26123822]
[1761305579714,2.19,191.25,191.17,2.86]
[1761305580806,2.2,191.23,191.15,3.31135146]
[1761305581009,2.2,191.23,191.15,5.02123822]
[1761305581210,2.2,191.23,191.12,46.91024417]
[1761305581416,2.2,191.17,191.12,0.91024417]
[1761305581611,2.2,191.17,191.1,2.40123822]
[1761305581802,6.9071,191.17,191.08,2.40123822]
[1761305582006,4.77404338,191.29,191.08,2.40123822]
[1761305582007,2.2,191.16,191.09,2.62]
[1761305582208,2.2,191.16,191.12,2.62]
[1761305582409,2.2,191.16,191.1,2.40123822]
[1761305583311,2.2,191.16,191.09,2.40123822]
[1761305583615,2.2,191.16,191.1,2.40123822]
[1761305584112,2.2,191.16,191.08,2.40123822]
[1761305584410,2.2,191.14,191.09,2.40123822]
[1761305584607,2.2,191.14,191.09,5.02123822]
[1761305584809,2.2,191.14,191.06,2.62]
[1761305585115,2.2,191.26,191.13,2.40123822]
[1761305585506,2.2,191.26,191.11,2.62]
[1761305585816,2.2,191.26,191.12,2.40123822]
[1761305586111,2.2,191.26,191.11,2.62]
[1761305586312,2.2,191.26,191.12,2.40123822]
[1761305586517,2.2,191.19,191.12,2.40123822]
[1761305586703,2.2,191.24,191.16,2.62]
[1761305586908,2.2,191.24,191.18,2.40123822]
[1761305587108,2.2,191.23,191.13,2.62]
[1761305587313,2.2,191.23,191.16,2.40123822]
[1761305587730,2.2,191.21,191.13,2.62]
[1761305587906,2.2,191.21,191.13,5.02123822]
[1761305589114,4.7058,191.22,191.07,6.82]
[1761305589115,2.2,191.24,191.17,2.62]
[1761305590018,2.2,191.24,191.19,5.02123822]
[1761305592015,2.2,191.24,191.19,2.40123822]
[1761305592222,2.2,191.24,191.2,2.62]
[1761305593813,2.2,191.24,191.04,2.62]
[1761305594020,2.2,191.23,191.14,5.02123822]